fUSD/lending_fUSD_20260106
["ID","MTS","AMOUNT","RATE_DAILY","PERIOD"]
[400545271,1767709603678,-216.964536,0.0004325,120]
[400545272,1767709603760,-151.0,0.0004325,120]
[400545273,1767709603844,-151.0,0.0004325,120]
[400545274,1767709603925,-151.0,0.0004325,120]
[400545275,1767709604006,-151.0,0.0004325,120]
[400545276,1767709604087,-151.0,0.0004325,120]
[400545277,1767709604165,-151.0,0.0004325,120]
[400545278,1767709604251,-151.0,0.0004325,120]
[400545279,1767709604335,-151.0,0.0004325,120]
[400545280,1767709604421,-151.0,0.0004325,120]
[400545281,1767709604502,-151.0,0.0004325,120]
[400545282,1767709604587,-151.0,0.0004325,120]
[400545283,1767709604673,-151.0,0.0004325,120]
[400545284,1767709604754,-151.0,0.0004325,120]
[400545285,1767709604836,-264.00704,0.0004325,120]
[400545286,1767709604916,-229.198652,0.0004325,120]
[400545287,1767709604997,-151.0,0.0004325,120]
[400545288,1767709605078,-158.523641,0.0004325,120]
[400545289,1767709605159,-151.0,0.0004325,120]
[400545290,1767709605236,-151.0,0.0004325,120]
[400545291,1767709605322,-151.0,0.0004325,120]
[400545292,1767709605403,-151.0,0.0004325,120]
[400545293,1767709605483,-151.0,0.0004325,120]
[400545294,1767709605564,-275.402496,0.0004325,120]
[400545295,1767709605653,-151.0,0.0004325,120]
[400545296,1767709605734,-151.0,0.0004325,120]
[400545297,1767709605815,-151.0,0.0004325,120]
[400545298,1767709605896,-151.0,0.0004325,120]
[400545299,1767709605977,-151.0,0.0004325,120]
[400545300,1767709606058,-151.0,0.0004325,120]
[400545301,1767709606138,-151.0,0.0004325,120]
[400545302,1767709606220,-151.000029,0.0004325,120]
[400545303,1767709606298,-151.0,0.0004325,120]
[400545304,1767709606377,-151.0,0.0004325,120]
[400545305,1767709606458,-151.0,0.0004325,120]
[400545306,1767709606539,-151.0,0.0004325,120]
[400545307,1767709606621,-151.0,0.0004325,120]
[400545308,1767709606704,-151.0,0.0004325,120]
[400545309,1767709606790,-151.0,0.0004325,120]
[400545310,1767709606876,-151.0,0.0004325,60]
[400545311,1767709606960,-151.0,0.0004325,120]
[400545312,1767709607044,-151.0,0.0004325,60]
[400545313,1767709607123,-151.0,0.0004325,60]
[400545314,1767709607202,-151.0,0.0004325,60]
[400545315,1767709607282,-151.0,0.0004325,120]
[400545316,1767709607360,-151.0,0.0004325,60]
[400545317,1767709607445,-151.0,0.0004325,60]
[400545318,1767709607528,-151.0,0.0004325,60]
[400545319,1767709607616,-151.0,0.0004325,60]
[400545320,1767709607702,-190.275926,0.0004325,60]
[400545321,1767709607787,-151.0,0.0004325,120]
[400545322,1767709607869,-151.0,0.0004325,120]
[400545323,1767709607948,-151.0,0.0004325,120]
[400545324,1767709608028,-185.367152,0.0004325,120]
[400545325,1767709608111,-151.0,0.0004325,120]
[400545326,1767709608192,-203.55208,0.0004325,120]
[400545327,1767709608271,-151.0,0.0004325,120]
[400545328,1767709608354,-151.0,0.0004325,120]
[400545329,1767709608432,-151.0,0.0004325,120]
[400545330,1767709608512,-151.0,0.0004325,120]
[400545331,1767709608594,-151.0,0.0004325,120]
[400545332,1767709608675,-151.0,0.0004325,120]
[400545333,1767709608753,-151.0,0.0004325,120]
[400545334,1767709608831,-151.0,0.0004325,120]
[400545335,1767709608908,-165.712809,0.0004325,120]
[400545336,1767709608984,-151.0,0.0004325,120]
[400545337,1767709609060,-151.0,0.0004325,120]
[400545338,1767709609137,-151.0,0.0004325,120]
[400545339,1767709609215,-151.0,0.0004325,120]
[400545340,1767709609296,-151.0,0.0004325,120]
[400545341,1767709609376,-151.0,0.0004325,120]
[400545342,1767709609456,-151.0,0.0004325,120]
[400545343,1767709609537,-151.0,0.0004325,120]
[400545344,1767709609617,-151.0,0.0004325,120]
[400545345,1767709609697,-234.578638,0.0004325,120]
[400545346,1767709609777,-151.0,0.0004325,120]
[400545347,1767709609857,-156.17782,0.0004325,120]
[400545348,1767709609936,-151.0,0.0004325,120]
[400545349,1767709610014,-156.17782,0.0004325,120]
[400545350,1767709610092,-151.0,0.0004325,120]
[400545351,1767709610173,-156.17782,0.0004325,120]
[400545352,1767709610254,-151.0,0.0004325,120]
[400545353,1767709610333,-156.17782,0.0004325,120]
[400545354,1767709610411,-151.0,0.0004325,120]
[400545355,1767709610490,-156.17782,0.0004325,120]
[400545356,1767709610573,-151.0,0.0004325,120]
[400545357,1767709610799,-156.17782,0.0004325,120]
[400545358,1767709610878,-229.393655,0.0004325,120]
[400545359,1767709610956,-156.17782,0.0004325,120]
[400545360,1767709611036,-156.17782,0.0004325,120]
[400545361,1767709611116,-156.17782,0.0004325,120]
[400545362,1767709611195,-156.17782,0.0004325,120]
[400545363,1767709611274,-156.17782,0.0004325,120]
[400545364,1767709611354,-156.17782,0.0004325,120]
[400545365,1767709611435,-156.17782,0.0004325,120]
[400545366,1767709611516,-156.17782,0.0004325,120]
[400545367,1767709611598,-156.17782,0.0004325,120]
[400545368,1767709611680,-156.17782,0.0004325,120]
[400545369,1767709611762,-156.17782,0.0004325,120]
[400545370,1767709611841,-156.17782,0.0004325,120]
[400545371,1767709611923,-156.17782,0.0004325,120]
[400545372,1767709612003,-156.177828,0.0004325,120]
[400545373,1767709612083,-178.373676,0.0004325,120]
[400545374,1767709612164,-178.373676,0.0004325,120]
[400545375,1767709612246,-178.373676,0.0004325,120]
[400545376,1767709612330,-178.373676,0.0004325,120]
[400545377,1767709612411,-178.373676,0.0004325,120]
[400545378,1767709612489,-178.373676,0.0004325,120]
[400545379,1767709612571,-178.373676,0.0004325,120]
[400545380,1767709612653,-178.373676,0.0004325,120]
[400545381,1767709612732,-178.373676,0.0004325,120]
[400545382,1767709612812,-178.373676,0.0004325,120]
[400545383,1767709612893,-178.373676,0.0004325,120]
[400545384,1767709612976,-178.373676,0.0004325,120]
[400545385,1767709613056,-178.373676,0.0004325,120]
[400545386,1767709613136,-178.373676,0.0004325,120]
[400545387,1767709613219,-178.373676,0.0004325,120]
[400545388,1767709613305,-178.373676,0.0004325,120]
[400545389,1767709613389,-178.373676,0.0004325,120]
[400545390,1767709613473,-178.373676,0.0004325,120]
[400545391,1767709613559,-178.373676,0.0004325,120]
[400545392,1767709613639,-178.373685,0.0004325,120]
[400545393,1767709613722,-151.0,0.0004325,120]
[400545394,1767709613804,-151.0,0.0004325,120]
[400545395,1767709613886,-191.279642,0.0004325,120]
[400545396,1767709613969,-151.0,0.0004325,120]
[400545397,1767709614047,-151.0,0.0004325,120]
[400545398,1767709614128,-151.0,0.0004325,120]
[400545399,1767709614206,-151.0,0.0004325,120]
[400545400,1767709614290,-151.0,0.0004325,120]
[400545401,1767709614373,-151.0,0.0004325,120]
[400545402,1767709614454,-151.0,0.0004325,120]
[400545403,1767709614535,-151.0,0.0004325,120]
[400545404,1767709614615,-151.0,0.0004325,120]
[400545405,1767709614696,-151.0,0.0004325,120]
[400545406,1767709614776,-151.0,0.0004325,120]
[400545407,1767709614858,-151.0,0.0004325,120]
[400545408,1767709614936,-151.0,0.0004325,120]
[400545409,1767709615016,-151.0,0.0004325,120]
[400545410,1767709615094,-151.0,0.0004325,120]
[400545411,1767709615176,-151.0,0.0004325,120]
[400545412,1767709615264,-265.95046,0.0004325,120]
[400545413,1767709615348,-208.797506,0.0004325,120]
[400545414,1767709615432,-151.0,0.0004325,120]
[400545415,1767709615513,-154.45562,0.0004325,120]
[400545416,1767709615596,-151.0,0.0004325,120]
[400545417,1767709615679,-151.0,0.0004325,120]
[400545418,1767709615761,-151.0,0.0004325,120]
[400545419,1767709615843,-151.0,0.0004325,120]
[400545421,1767709615922,-151.0,0.0004325,120]
[400545422,1767709616003,-151.0,0.0004325,120]
[400545423,1767709616083,-151.0,0.0004325,120]
[400545424,1767709616166,-271.216334,0.0004325,120]
[400545425,1767709616248,-161.482391,0.0004325,120]
[400545426,1767709616329,-161.482391,0.0004325,120]
[400545427,1767709616409,-161.482391,0.0004325,120]
[400545428,1767709616490,-161.482391,0.0004325,120]
[400545429,1767709616570,-161.482391,0.0004325,120]
[400545430,1767709616653,-161.482391,0.0004325,120]
[400545431,1767709616733,-161.482391,0.0004325,120]
[400545432,1767709616815,-151.0,0.0004325,120]
[400545433,1767709616902,-151.0,0.0004325,120]
[400545434,1767709616980,-161.482391,0.0004325,120]
[400545435,1767709617059,-151.0,0.0004325,120]
[400545436,1767709617137,-269.498513,0.0004325,120]
[400545437,1767709617214,-161.482391,0.0004325,120]
[400545438,1767709617295,-198.724959,0.0004325,120]
[400545439,1767709617379,-161.482391,0.0004325,120]
[400545440,1767709617459,-161.482391,0.0004325,120]
[400545441,1767709617539,-161.482391,0.0004325,120]
[400545442,1767709617623,-161.482391,0.0004325,120]
[400545443,1767709617702,-161.482391,0.0004325,120]
[400545444,1767709617785,-161.482391,0.0004325,120]
[400545445,1767709617867,-161.482391,0.0004325,120]
[400545446,1767709617947,-161.482391,0.0004325,120]
[400545447,1767709618025,-161.482391,0.0004325,120]
[400545448,1767709618102,-161.482391,0.0004325,120]
[400545449,1767709618186,-161.482389,0.0004325,120]
[400545450,1767709618266,-151.0,0.0004325,120]
[400545451,1767709618351,-151.0,0.0004325,120]
[400545452,1767709618438,-151.0,0.0004325,120]
[400545453,1767709618679,-151.0,0.0004325,120]
[400545454,1767709618768,-151.0,0.0004325,120]
[400545455,1767709618852,-151.0,0.0004325,120]
[400545456,1767709618950,-337.8,0.000433,30]
[400545457,1767709619036,-152.0,0.000436,120]
[400545458,1767709619119,-152.0,0.000445,120]
[400545459,1767709619199,-210.0,0.0004496,30]
[400545460,1767709619280,-296.16,0.00045,120]
[400545461,1767709619361,-241.66,0.00045,120]
[400545462,1767709619442,-152.0,0.000454,120]
[400545463,1767709619522,-361.68386101,0.00046,120]
[400545464,1767709619603,-337.8,0.000461,30]
[400545465,1767709619701,-152.0,0.000463,120]
[400545466,1767709619781,-210.0,0.0004698,30]
[400545467,1767709619862,-152.0,0.000472,120]
[400545468,1767709619941,-296.16,0.0004725,120]
[400545469,1767709620020,-299.3206417,0.000475,120]
[400545470,1767709620103,-234.8117831,0.000478,60]
[400545471,1767709620188,-346.74355936,0.00048,120]
[400545472,1767709620272,-154.15,0.00048041,30]
[400545473,1767709620355,-152.0,0.000481,120]
[400545474,1767709620447,-337.8,0.000481,30]
[400545475,1767709620527,-319.28209618,0.00048425,120]
[400545476,1767709620609,-210.0,0.0004899,30]
[400545477,1767709620695,-152.0,0.00049,120]
[400545478,1767709620781,-357.88091911,0.00049,120]
[400545479,1767709620862,-160.24100378,0.00049,120]
[400545480,1767709620942,-182.64432715,0.00049,120]
[400545481,1767709621022,-455.88293438,0.00049356,60]
[400545482,1767709621107,-202.50440964,0.00049356,60]
[400545483,1767709621186,-159.0,0.000494,120]
[400545484,1767709621268,-296.16,0.00049613,120]
[400545485,1767709621351,-152.0,0.000499,120]
[400545486,1767709621432,-383.95014612,0.00049999,120]
[400545487,1767709621515,-321.24518713,0.00049999,120]
[400545488,1767709621601,-183.24703799,0.00049999,120]
[400545489,1767709621683,-241.66,0.0005,120]
[400545490,1767709621762,-172.78815275,0.0005,120]
[400545491,1767709621847,-229.4262439,0.0005,120]
[400545492,1767709621925,-302.00479812,0.0005,120]
[400545493,1767709622015,-3644.021785,0.0005,120]
[400545494,1767709622102,-222.4,0.000505,30]
[400545495,1767709622180,-355.25418703,0.000505,120]
[400545496,1767709622275,-152.0,0.000508,120]
[400545497,1767709622357,-1284.0,0.00051,120]
[400545498,1767709622438,-5000.0,0.00051234,75]
[400545499,1767709622520,-196.0,0.0005136,120]
[400545500,1767709622598,-337.8,0.000514,30]
[400545501,1767709622681,-414.0,0.00051499,120]
[400545502,1767709622764,-429.318,0.00051499,120]
[400545503,1767709622845,-500.0,0.00051499,120]
[400545504,1767709622922,-500.0,0.00051499,120]
[400545505,1767709623000,-500.0,0.00051499,120]
[400545506,1767709623081,-500.0,0.00051499,120]
[400545507,1767709623166,-500.0,0.00051499,120]
[400545508,1767709623253,-500.0,0.00051499,120]
[400545509,1767709623333,-500.0,0.00051499,120]
[400545510,1767709623417,-500.0,0.00051499,120]
[400545511,1767709623500,-500.0,0.00051499,120]
[400545512,1767709623586,-500.0,0.00051499,120]
[400545513,1767709623676,-500.0,0.00051499,120]
[400545514,1767709623762,-500.0,0.00051499,120]
[400545515,1767709623843,-500.0,0.00051499,120]
[400545516,1767709623923,-250.0,0.00051499,120]
[400545517,1767709624002,-500.0,0.00051499,120]
[400545518,1767709624082,-500.0,0.00051499,120]
[400545519,1767709624162,-250.0,0.00051499,120]
[400545520,1767709624242,-500.0,0.00051499,120]
[400545521,1767709624326,-500.0,0.00051499,120]
[400545522,1767709624406,-250.0,0.00051499,120]
[400545523,1767709624487,-500.0,0.00051499,120]
[400545524,1767709624569,-500.0,0.00051499,120]
[400545525,1767709624654,-500.0,0.00051499,120]
[400545526,1767709624740,-250.0,0.00051499,120]
[400545527,1767709624823,-500.0,0.00051499,120]
[400545528,1767709624902,-500.0,0.00051499,120]
[400545529,1767709624980,-250.0,0.00051499,120]
[400545530,1767709625063,-500.0,0.00051499,120]
[400545531,1767709625142,-500.0,0.00051499,120]
[400545532,1767709625222,-250.0,0.00051499,120]
[400545533,1767709625305,-500.0,0.00051499,120]
[400545534,1767709625386,-500.0,0.00051499,120]
[400545535,1767709625468,-250.0,0.00051499,120]
[400545536,1767709625552,-500.0,0.00051499,120]
[400545537,1767709625636,-500.0,0.00051499,120]
[400545538,1767709625718,-250.0,0.00051499,120]
[400545539,1767709625800,-500.0,0.00051499,120]
[400545540,1767709625884,-500.0,0.00051499,120]
[400545541,1767709625972,-250.0,0.00051499,120]
[400545542,1767709626058,-500.0,0.00051499,120]
[400545543,1767709626141,-500.0,0.00051499,120]
[400545544,1767709626221,-250.0,0.00051499,120]
[400545545,1767709626305,-500.0,0.00051499,120]
[400545546,1767709626387,-250.0,0.00051499,120]
[400545547,1767709626629,-500.0,0.00051499,120]
[400545548,1767709626708,-250.0,0.00051499,120]
[400545549,1767709626788,-500.0,0.00051499,120]
[400545550,1767709626870,-250.0,0.00051499,120]
[400545551,1767709626949,-500.0,0.00051499,120]
[400545552,1767709627030,-250.0,0.00051499,120]
[400545553,1767709627110,-500.0,0.00051499,120]
[400545554,1767709627188,-151.0,0.00051499,120]
[400545555,1767709627265,-250.0,0.00051499,120]
[400545556,1767709627345,-500.0,0.00051499,120]
[400545557,1767709627426,-151.0,0.00051499,120]
[400545558,1767709627506,-156.587,0.00051499,120]
[400545559,1767709627591,-151.0,0.00051499,120]
[400545560,1767709627674,-250.0,0.00051499,120]
[400545561,1767709627756,-162.380719,0.00051499,120]
[400545562,1767709627837,-151.0,0.00051499,120]
[400545563,1767709627922,-250.0,0.00051499,120]
[400545564,1767709628010,-165.99337346,0.00051499,120]
[400545565,1767709628092,-250.0,0.00051499,120]
[400545566,1767709628178,-151.0,0.00051499,120]
[400545567,1767709628265,-250.0,0.00051499,120]
[400545568,1767709628348,-250.0,0.00051499,120]
[400545569,1767709628434,-151.0,0.00051499,120]
[400545570,1767709628514,-250.0,0.00051499,120]
[400545571,1767709628597,-322.6107,0.00051499,120]
[400545572,1767709628681,-151.0,0.00051499,120]
[400545573,1767709628764,-250.0,0.00051499,120]
[400545574,1767709628845,-151.0,0.00051499,120]
[400545575,1767709628927,-250.0,0.00051499,120]
[400545576,1767709629006,-151.0,0.00051499,120]
[400545577,1767709629089,-250.0,0.00051499,120]
[400545578,1767709629173,-151.0,0.00051499,120]
[400545579,1767709629261,-250.0,0.00051499,120]
[400545580,1767709629343,-203.83641046,0.00051499,120]
[400545581,1767709629420,-250.0,0.00051499,120]
[400545582,1767709629501,-151.0,0.00051499,120]
[400545583,1767709629588,-151.0,0.00051499,120]
[400545584,1767709629668,-250.0,0.00051499,120]
[400545585,1767709629748,-269.69223795,0.00051499,120]
[400545586,1767709629824,-250.0,0.00051499,120]
[400545587,1767709629906,-151.0,0.00051499,120]
[400545588,1767709629984,-151.0,0.00051499,120]
[400545589,1767709630065,-151.0,0.00051499,120]
[400545590,1767709630142,-151.0,0.00051499,120]
[400545591,1767709630221,-151.0,0.00051499,120]
[400545592,1767709630302,-151.0,0.00051499,120]
[400545593,1767709630385,-151.0,0.00051499,120]
[400545594,1767709630464,-151.0,0.00051499,120]
[400545595,1767709630547,-151.0,0.00051499,120]
[400545596,1767709630634,-842768.00579798,0.000515,120]
[400545597,1767709630718,-272.86208129,0.000515,120]
[400545598,1767709630797,-7500.0,0.0005169,120]
[400545599,1767709630879,-11400.000001,0.000517,90]
[400545600,1767709630957,-152.0,0.000517,120]
[400545601,1767709631036,-167.24,0.000518,30]
[400545602,1767709631109,-5000.0,0.000519,120]
[400545603,1767709631187,-150.0,0.000519,30]
[400545604,1767709631266,-2169.9997,0.00051948,80]
[400545605,1767709631345,-1668.55096905,0.0005198,110]
[400545606,1767709631425,-1000.0,0.00051999,120]
[400545607,1767709631507,-38500.0,0.00052,30]
[400545608,1767709631589,-253.15,0.00052,120]
[400545609,1767709631671,-2151.36,0.00052,90]
[400545610,1767709631749,-200.0,0.00052,40]
[400545611,1767709631828,-307.07375719,0.00052,120]
[400545612,1767709631910,-171.45563213,0.00052,120]
[400545613,1767709631995,-2691.0,0.00052,120]
[400545614,1767709632075,-150.0,0.00052,120]
[400545615,1767709632153,-1000.0,0.00052,120]
[400545616,1767709632235,-2000.0,0.00052,120]
[400545617,1767709632325,-2061.89058983,0.00052,120]
[400545618,1767709632405,-10000.0,0.00052,120]
[400545619,1767709632482,-75105.3622132,0.00052,120]
[400545620,1767709632566,-300.0,0.00052,120]
[400545621,1767709632647,-457.64,0.00052,120]
[400545622,1767709632726,-3304.72007624,0.00052,120]
[400545623,1767709632807,-10000.0,0.00052054,120]
[400545624,1767709632886,-296.16,0.00052093,120]
[400545625,1767709632963,-1939.0,0.000521,120]
[400545626,1767709633043,-261.0,0.00052191,120]
[400545627,1767709633119,-2043.0,0.0005246,75]
[400545628,1767709633196,-685.75912505,0.00052475,120]
[400545629,1767709633274,-3236.66962227,0.000525,120]
[400545630,1767709633352,-7140.44016331,0.000525,120]
[400545631,1767709633432,-670.74908495,0.000525,120]
[400545632,1767709633510,-152.0,0.000526,120]
[400545633,1767709633592,-406.3,0.0005269,120]
[400545634,1767709633671,-555.8055399,0.000528,120]
[400545635,1767709633751,-3044.2,0.00052877,120]
[400545636,1767709633831,-5000.0,0.000529,120]
[400545637,1767709633912,-1000.0,0.00053,120]
[400545638,1767709633992,-1212.21678072,0.00053,120]
[400545639,1767709634070,-251.65628502,0.00053,120]
[400545640,1767709634150,-1305.48594448,0.00053,120]
[400545641,1767709634229,-150.0,0.00053,120]
[400545642,1767709634311,-71429.66,0.00053,30]
[400545643,1767709634391,-1606.0,0.00053,120]
[400545644,1767709634470,-1713.46574299,0.00053,120]
[400545645,1767709634551,-4212.99,0.00053,120]
[400545646,1767709634631,-200000.0,0.00053,120]
[400545647,1767709634710,-222.4,0.00053,30]
[400545648,1767709634790,-98000.0,0.000531,120]
[400545649,1767709634870,-337.8,0.000531,30]
[400545650,1767709634950,-696.44928105,0.00053287,60]
[400545651,1767709635031,-1144.43346268,0.000533,120]
[400545652,1767709635110,-1005.56,0.0005331,120]
[400545653,1767709635189,-53134.59426,0.0005333,60]
[400545654,1767709635267,-8618.51443642,0.00053333,120]
[400545655,1767709635347,-263.43,0.00053353,120]
[400545656,1767709635426,-2897.03983397,0.00053424,120]
[400545657,1767709635508,-195.0,0.00053456,120]
[400545658,1767709635595,-256514.20916,0.000535,120]
[400545659,1767709635679,-5000000.0,0.000535,120]
[400545660,1767709635764,-5000000.0,0.000535,120]
[400545661,1767709635848,-857.24730615,0.000535,120]
[400545662,1767709635932,-167.24,0.000535,30]
[400545663,1767709636016,-152.0,0.000535,120]
[400545664,1767709636096,-4635.24771583,0.00053655,120]
[400545665,1767709636179,-47158.061457,0.00053656,120]
[400545666,1767709636266,-21704.95141398,0.00053657,120]
[400545669,1767709697148,-229.55635335,0.00039899,120]
[400545670,1767709697180,-236.15,0.00039899,120]
[400545671,1767709697214,-165.63272181,0.00039899,120]
[400545672,1767709697244,-153.0,0.0004,120]
[400545673,1767709697274,-250.0,0.0004,45]
[400545674,1767709697304,-250.0,0.000405,45]
[400545675,1767709697334,-155.72,0.0004051,120]
[400545676,1767709697364,-155.72,0.0004061,120]
[400545677,1767709697394,-155.72,0.0004071,120]
[400545678,1767709697422,-153.0,0.000408,120]
[400545679,1767709697452,-155.76,0.0004081,120]
[400545680,1767709697480,-250.0,0.00041,45]
[400545681,1767709697509,-438.31339759,0.00041095,120]
[400545682,1767709697537,-453.30745338,0.00041095,120]
[400545683,1767709697568,-254.0,0.00041096,30]
[400545684,1767709697598,-789.08,0.00041096,120]
[400545685,1767709697626,-2617.02889304,0.000412,120]
[400545686,1767709697656,-250.0,0.000415,45]
[400545687,1767709697685,-153.0,0.000417,120]
[400545688,1767709697713,-3036.66367252,0.000418,120]
[400545689,1767709697743,-1326.17184851,0.000419,120]
[400545690,1767709697773,-163.9650413,0.00042,120]
[400545691,1767709697802,-229.07136963,0.00042397,30]
[400545692,1767709697831,-153.0,0.000425,120]
[400545693,1767709697860,-365.64970051,0.00042933,30]
[400545694,1767709697890,-354.68959988,0.00043,120]
[400545695,1767709697922,-25559.19671929,0.0004325,30]
[400545696,1767709697952,-151.0,0.0004325,120]
[400545697,1767709697981,-151.0,0.0004325,120]
[400545698,1767709698009,-151.0,0.0004325,120]
[400545699,1767709698038,-151.0,0.0004325,120]
[400545700,1767709698067,-161.087965,0.0004325,120]
[400545701,1767709698096,-151.0,0.0004325,120]
[400545702,1767709698125,-151.0,0.0004325,120]
[400545703,1767709698155,-151.0,0.0004325,120]
[400545704,1767709698186,-151.0,0.0004325,120]
[400545705,1767709698217,-151.0,0.0004325,120]
[400545706,1767709698246,-151.0,0.0004325,120]
[400545707,1767709698276,-151.0,0.0004325,120]
[400545708,1767709698307,-151.0,0.0004325,120]
[400545709,1767709698337,-151.0,0.0004325,120]
[400545710,1767709698366,-151.0,0.0004325,120]
[400545711,1767709698395,-151.0,0.0004325,120]
[400545712,1767709698423,-151.0,0.0004325,120]
[400545713,1767709698452,-151.0,0.0004325,120]
[400545714,1767709698482,-151.0,0.0004325,120]
[400545715,1767709698510,-173.339973,0.0004325,120]
[400545716,1767709698539,-151.0,0.0004325,120]
[400545717,1767709698568,-151.0,0.0004325,120]
[400545718,1767709698598,-151.0,0.0004325,120]
[400545719,1767709698628,-207.379886,0.0004325,120]
[400545720,1767709698657,-345.465595,0.0004325,120]
[400545721,1767709698686,-345.465595,0.0004325,120]
[400545722,1767709698715,-345.465595,0.0004325,120]
[400545723,1767709698744,-345.465595,0.0004325,120]
[400545724,1767709698937,-345.465595,0.0004325,120]
[400545725,1767709698967,-345.465595,0.0004325,120]
[400545726,1767709698996,-345.465595,0.0004325,120]
[400545727,1767709699025,-345.465595,0.0004325,120]
[400545728,1767709699055,-345.465595,0.0004325,120]
[400545729,1767709699084,-345.465595,0.0004325,120]
[400545730,1767709699113,-345.465595,0.0004325,120]
[400545731,1767709699142,-345.465595,0.0004325,120]
[400545732,1767709699171,-345.465595,0.0004325,120]
[400545733,1767709699199,-345.465595,0.0004325,120]
[400545734,1767709699228,-345.465595,0.0004325,120]
[400545735,1767709699256,-345.465595,0.0004325,120]
[400545736,1767709699286,-345.465595,0.0004325,120]
[400545737,1767709699315,-345.465595,0.0004325,120]
[400545738,1767709699344,-345.465595,0.0004325,120]
[400545739,1767709699373,-345.465591,0.0004325,120]
[400545740,1767709699402,-151.0,0.0004325,30]
[400545741,1767709699431,-180.793926,0.0004325,120]
[400545742,1767709699460,-180.793926,0.0004325,120]
[400545743,1767709699489,-180.793926,0.0004325,120]
[400545744,1767709699518,-180.793926,0.0004325,120]
[400545745,1767709699547,-180.793926,0.0004325,120]
[400545746,1767709699578,-180.793926,0.0004325,120]
[400545747,1767709699606,-180.793926,0.0004325,120]
[400545748,1767709699635,-180.793926,0.0004325,120]
[400545749,1767709699663,-180.793926,0.0004325,120]
[400545750,1767709699694,-180.793926,0.0004325,120]
[400545751,1767709699723,-180.793926,0.0004325,120]
[400545752,1767709699751,-180.793926,0.0004325,120]
[400545753,1767709699780,-180.793926,0.0004325,120]
[400545754,1767709699810,-180.793926,0.0004325,120]
[400545755,1767709699839,-180.793926,0.0004325,120]
[400545756,1767709699867,-180.793926,0.0004325,120]
[400545757,1767709699895,-180.793926,0.0004325,120]
[400545758,1767709699924,-180.793926,0.0004325,120]
[400545759,1767709699952,-180.793926,0.0004325,120]
[400545760,1767709699980,-180.793927,0.0004325,120]
[400545761,1767709700024,-283.2991523,0.0004325,30]
[400545762,1767709700052,-283.2991523,0.0004325,30]
[400545763,1767709700080,-153.0,0.000434,120]
[400545764,1767709700109,-194.3044,0.00043635,120]
[400545765,1767709700137,-328.45546306,0.00044,120]
[400545766,1767709700167,-153.0,0.000442,120]
[400545767,1767709700200,-153.0,0.00045,120]
[400545768,1767709700228,-153.93344626,0.00045,120]
[400545769,1767709700256,-372.61449682,0.000457,120]
[400545770,1767709700285,-153.0,0.000459,120]
[400545771,1767709700313,-204.85882498,0.00046,30]
[400545772,1767709700342,-153.0,0.000467,120]
[400545773,1767709700371,-346.34186252,0.000475,120]